[Event "Late-Titled-Tuesday-Blitz-September-05-2023"]
[Site "Chess.com"]
[Date "2023.09.05"]
[Round "2"]
[White "wadsy27"]
[Black "Jospem"]
[Result "0-1"]
[WhiteElo "2597"]
[BlackElo "3042"]
[TimeControl "180+1"]
[EndTime "14:15:46 PDT"]
[Termination "Jospem won by resignation"]

1. c4 {[%clk 0:02:58.4]} 1... c5 {[%clk 0:02:51.6]} 2. g3 {[%clk 0:02:58.2]}
2... Nc6 {[%clk 0:02:52.1]} 3. Bg2 {[%clk 0:02:58.3]} 3... g6 {[%clk 0:02:52.8]}
4. Nc3 {[%clk 0:02:58.4]} 4... Bg7 {[%clk 0:02:53.3]} 5. Nf3 {[%clk 0:02:58.1]}
5... d6 {[%clk 0:02:53.7]} 6. O-O {[%clk 0:02:56.5]} 6... e6 {[%clk 0:02:54.3]}
7. e3 {[%clk 0:02:56.3]} 7... Nge7 {[%clk 0:02:54.6]} 8. d4 {[%clk 0:02:56.5]}
8... O-O {[%clk 0:02:55.5]} 9. Re1 {[%clk 0:02:56.6]} 9... Rb8 {[%clk
0:02:50.1]} 10. b3 {[%clk 0:02:51.3]} 10... b6 {[%clk 0:02:44.8]} 11. Bb2 {[%clk
0:02:49.6]} 11... Bb7 {[%clk 0:02:43.9]} 12. Qd2 {[%clk 0:02:42.3]} 12... cxd4
{[%clk 0:02:41.8]} 13. exd4 {[%clk 0:02:42.2]} 13... d5 {[%clk 0:02:41.7]} 14.
Rad1 {[%clk 0:02:15.9]} 14... dxc4 {[%clk 0:02:39]} 15. bxc4 {[%clk 0:02:16.1]}
15... Na5 {[%clk 0:02:39.6]} 16. Qe2 {[%clk 0:02:09.1]} 16... Rc8 {[%clk
0:02:39.8]} 17. Ne5 {[%clk 0:02:00.8]} 17... Bxg2 {[%clk 0:02:39.4]} 18. Kxg2
{[%clk 0:02:01.7]} 18... Nf5 {[%clk 0:02:15.6]} 19. d5 {[%clk 0:01:25.8]} 19...
Bxe5 {[%clk 0:02:11.8]} 20. Qxe5 {[%clk 0:01:23.8]} 20... Nxc4 {[%clk
0:02:11.4]} 21. Qe2 {[%clk 0:01:24]} 21... Nxb2 {[%clk 0:02:10.2]} 22. Qxb2
{[%clk 0:01:19.6]} 22... Qf6 {[%clk 0:02:09.1]} 23. dxe6 {[%clk 0:00:57.9]}
23... Qxc3 {[%clk 0:01:59.4]} 24. Qxc3 {[%clk 0:00:58.4]} 24... Rxc3 {[%clk
0:02:00.3]} 25. e7 {[%clk 0:00:59]} 25... Re8 {[%clk 0:01:56.8]} 26. Rd8 {[%clk
0:00:57.7]} 26... Ng7 {[%clk 0:01:56.8]} 27. Red1 {[%clk 0:00:48.3]} 27... f6
{[%clk 0:01:54.6]} 28. R1d7 {[%clk 0:00:48.1]} 28... Ra3 {[%clk 0:01:51.2]} 29.
h4 {[%clk 0:00:38]} 29... Kf7 {[%clk 0:01:51]} 0-1

[Event "Late-Titled-Tuesday-Blitz-September-05-2023"]
[Site "Chess.com"]
[Date "2023.09.05"]
[Round "2"]
[White "Fleetw00dMac"]
[Black "HeinichessPY"]
[Result "1-0"]
[WhiteElo "2460"]
[BlackElo "2220"]
[TimeControl "180+1"]
[EndTime "14:15:46 PDT"]
[Termination "Fleetw00dMac won by resignation"]

1. d4 {[%clk 0:03:00.9]} 1... d5 {[%clk 0:02:25.5]} 2. c4 {[%clk 0:03:00.3]}
2... e6 {[%clk 0:02:24.1]} 3. Nc3 {[%clk 0:02:59.7]} 3... Nf6 {[%clk 0:02:24.4]}
4. cxd5 {[%clk 0:02:59.2]} 4... exd5 {[%clk 0:02:24.2]} 5. Bg5 {[%clk
0:02:58.6]} 5... Be7 {[%clk 0:02:24.7]} 6. e3 {[%clk 0:02:58.5]} 6... O-O {[%clk
0:02:24.6]} 7. Bd3 {[%clk 0:02:58.1]} 7... c5 {[%clk 0:02:20.4]} 8. dxc5 {[%clk
0:02:48.9]} 8... Bxc5 {[%clk 0:02:16.5]} 9. Nge2 {[%clk 0:02:45.1]} 9... h6
{[%clk 0:02:11.7]} 10. Bh4 {[%clk 0:02:44.1]} 10... Nc6 {[%clk 0:02:09.1]} 11.
O-O {[%clk 0:02:43.6]} 11... Ne5 {[%clk 0:02:04.6]} 12. Bc2 {[%clk 0:02:41.1]}
12... Be6 {[%clk 0:02:02.4]} 13. Bb3 {[%clk 0:02:29.5]} 13... g5 {[%clk
0:01:55.2]} 14. Bg3 {[%clk 0:02:28.5]} 14... Nc4 {[%clk 0:01:55.3]} 15. Bxc4
{[%clk 0:02:18.7]} 15... dxc4 {[%clk 0:01:55.1]} 16. Be5 {[%clk 0:02:18.2]}
16... Nd5 {[%clk 0:01:45.5]} 17. Ne4 {[%clk 0:02:06.1]} 17... Be7 {[%clk
0:01:40.8]} 18. Nd4 {[%clk 0:01:56.7]} 18... Qd7 {[%clk 0:01:32.9]} 19. Qh5
{[%clk 0:01:38.7]} 19... f5 {[%clk 0:01:26.4]} 20. Qxh6 {[%clk 0:01:35.5]} 20...
Bb4 {[%clk 0:00:45.7]} 21. Nxe6 {[%clk 0:01:19.2]} 21... fxe4 {[%clk 0:00:41.2]}
22. Qg6+ {[%clk 0:01:15.7]} 1-0

[Event "Late-Titled-Tuesday-Blitz-September-05-2023"]
[Site "Chess.com"]
[Date "2023.09.05"]
[Round "2"]
[White "alexrustemov"]
[Black "ketster"]
[Result "1-0"]
[WhiteElo "2881"]
[BlackElo "2547"]
[TimeControl "180+1"]
[EndTime "14:15:51 PDT"]
[Termination "alexrustemov won on time"]

1. d4 {[%clk 0:03:00.9]} 1... d5 {[%clk 0:02:58.3]} 2. c4 {[%clk 0:03:01.1]}
2... dxc4 {[%clk 0:02:58.4]} 3. Nf3 {[%clk 0:03:00.1]} 3... a6 {[%clk
0:02:58.1]} 4. e3 {[%clk 0:03:00.2]} 4... Bg4 {[%clk 0:02:57.3]} 5. Bxc4 {[%clk
0:02:59.4]} 5... e6 {[%clk 0:02:56.8]} 6. h3 {[%clk 0:02:59.2]} 6... Bh5 {[%clk
0:02:55.6]} 7. Nc3 {[%clk 0:02:59.2]} 7... Nc6 {[%clk 0:02:54.6]} 8. O-O {[%clk
0:02:58.6]} 8... Nf6 {[%clk 0:02:54.4]} 9. Re1 {[%clk 0:02:58]} 9... Bd6 {[%clk
0:02:52.7]} 10. e4 {[%clk 0:02:57.7]} 10... e5 {[%clk 0:02:06.1]} 11. g4 {[%clk
0:02:56.9]} 11... Nxg4 {[%clk 0:01:56.3]} 12. hxg4 {[%clk 0:02:55.4]} 12... Bxg4
{[%clk 0:01:56.9]} 13. dxe5 {[%clk 0:02:48.2]} 13... Nxe5 {[%clk 0:01:43]} 14.
Be2 {[%clk 0:02:35.3]} 14... Bxf3 {[%clk 0:01:27.6]} 15. Bxf3 {[%clk 0:02:36.2]}
15... Qh4 {[%clk 0:01:24.1]} 16. Bg2 {[%clk 0:02:33.5]} 16... Ng4 {[%clk
0:01:03.1]} 17. Qe2 {[%clk 0:02:30.7]} 17... O-O-O {[%clk 0:00:47.1]} 18. Be3
{[%clk 0:02:23.9]} 18... Qh2+ {[%clk 0:00:34.5]} 19. Kf1 {[%clk 0:02:23.9]}
19... h5 {[%clk 0:00:32.2]} 20. Qf3 {[%clk 0:02:14.8]} 20... Nxe3+ {[%clk
0:00:20.4]} 21. Rxe3 {[%clk 0:02:11.5]} 21... c6 {[%clk 0:00:07]} 22. Qh3+
{[%clk 0:02:10.7]} 22... Qxh3 {[%clk 0:00:07.4]} 23. Bxh3+ {[%clk 0:02:11.5]}
23... Kc7 {[%clk 0:00:08]} 24. Rd1 {[%clk 0:02:06.9]} 24... g5 {[%clk
0:00:08.3]} 25. Bf5 {[%clk 0:02:05.5]} 25... g4 {[%clk 0:00:06.9]} 26. Red3
{[%clk 0:02:02.5]} 26... f6 {[%clk 0:00:03.4]} 27. Ne2 {[%clk 0:02:01.7]} 27...
Rhg8 {[%clk 0:00:02.5]} 28. Nd4 {[%clk 0:02:00.1]} 28... Kb6 {[%clk 0:00:01.3]}
29. Ne6 {[%clk 0:02:00]} 1-0

[Event "Late-Titled-Tuesday-Blitz-September-05-2023"]
[Site "Chess.com"]
[Date "2023.09.05"]
[Round "2"]
[White "hammahamma"]
[Black "AquivaRubinstein"]
[Result "0-1"]
[WhiteElo "2277"]
[BlackElo "2488"]
[TimeControl "180+1"]
[EndTime "14:15:56 PDT"]
[Termination "AquivaRubinstein won by resignation"]

1. e4 {[%clk 0:03:00.9]} 1... Nf6 {[%clk 0:02:56]} 2. e5 {[%clk 0:03:00.5]} 2...
Nd5 {[%clk 0:02:56.2]} 3. d4 {[%clk 0:03:01.1]} 3... d6 {[%clk 0:02:56.6]} 4. c4
{[%clk 0:03:01.3]} 4... Nb6 {[%clk 0:02:56.8]} 5. exd6 {[%clk 0:03:01.6]} 5...
cxd6 {[%clk 0:02:56.9]} 6. Nf3 {[%clk 0:03:01.1]} 6... g6 {[%clk 0:02:57.1]} 7.
Nc3 {[%clk 0:02:58.8]} 7... Bg7 {[%clk 0:02:57.2]} 8. Be2 {[%clk 0:02:59.2]}
8... O-O {[%clk 0:02:57.1]} 9. O-O {[%clk 0:02:59.7]} 9... Bg4 {[%clk
0:02:57.3]} 10. h3 {[%clk 0:02:55.3]} 10... Bxf3 {[%clk 0:02:57.6]} 11. Bxf3
{[%clk 0:02:56.2]} 11... Nc6 {[%clk 0:02:58]} 12. Bxc6 {[%clk 0:02:33.4]} 12...
bxc6 {[%clk 0:02:58.9]} 13. Be3 {[%clk 0:02:33.4]} 13... Nxc4 {[%clk 0:02:53.8]}
14. Qe2 {[%clk 0:02:22.6]} 14... Nxe3 {[%clk 0:02:31.9]} 15. Qxe3 {[%clk
0:02:10.6]} 15... Rb8 {[%clk 0:02:28.7]} 16. Rab1 {[%clk 0:02:03.9]} 16... d5
{[%clk 0:02:19.9]} 17. b3 {[%clk 0:01:53.7]} 17... c5 {[%clk 0:02:12.4]} 18. Ne2
{[%clk 0:01:23.3]} 18... cxd4 {[%clk 0:02:12.4]} 19. Nxd4 {[%clk 0:01:24.2]}
19... Qb6 {[%clk 0:02:12.5]} 20. Rfd1 {[%clk 0:01:13.6]} 20... e5 {[%clk
0:02:06.3]} 21. Nc2 {[%clk 0:00:46.1]} 21... Rfc8 {[%clk 0:02:04.2]} 22. Ne1
{[%clk 0:00:14.9]} 22... Qxe3 {[%clk 0:01:46.3]} 23. fxe3 {[%clk 0:00:15.8]}
23... Rb5 {[%clk 0:01:46.3]} 24. Rd2 {[%clk 0:00:14.4]} 24... Bh6 {[%clk
0:01:42.3]} 25. Rd3 {[%clk 0:00:13.2]} 25... e4 {[%clk 0:01:38.8]} 0-1

[Event "Late-Titled-Tuesday-Blitz-September-05-2023"]
[Site "Chess.com"]
[Date "2023.09.05"]
[Round "2"]
[White "Defend1r"]
[Black "Durarbayli"]
[Result "0-1"]
[WhiteElo "2538"]
[BlackElo "2865"]
[TimeControl "180+1"]
[EndTime "14:15:59 PDT"]
[Termination "Durarbayli won by resignation"]

1. e4 {[%clk 0:03:00]} 1... c5 {[%clk 0:03:00]} 2. Nf3 {[%clk 0:03:00.2]} 2...
d6 {[%clk 0:03:00.7]} 3. c3 {[%clk 0:02:59.9]} 3... Nf6 {[%clk 0:03:00.2]} 4. h3
{[%clk 0:03:00.3]} 4... Nc6 {[%clk 0:02:59.7]} 5. Bd3 {[%clk 0:03:00.8]} 5... e6
{[%clk 0:02:55.4]} 6. Bc2 {[%clk 0:03:00.1]} 6... d5 {[%clk 0:02:55.9]} 7. exd5
{[%clk 0:02:49.9]} 7... Nxd5 {[%clk 0:02:53.9]} 8. d4 {[%clk 0:02:48.8]} 8...
cxd4 {[%clk 0:02:53.6]} 9. Nxd4 {[%clk 0:02:49.7]} 9... Bd6 {[%clk 0:02:51.3]}
10. Nxc6 {[%clk 0:02:46.6]} 10... bxc6 {[%clk 0:02:52.2]} 11. O-O {[%clk
0:02:46.7]} 11... Ba6 {[%clk 0:02:44.1]} 12. Bd3 {[%clk 0:02:40.9]} 12... Bb7
{[%clk 0:02:35.3]} 13. Nd2 {[%clk 0:02:40]} 13... O-O {[%clk 0:02:34]} 14. Nc4
{[%clk 0:02:39.3]} 14... Bc7 {[%clk 0:02:32.7]} 15. Qc2 {[%clk 0:02:32.9]} 15...
h6 {[%clk 0:02:32.1]} 16. Rd1 {[%clk 0:02:30.3]} 16... c5 {[%clk 0:02:32]} 17.
Be4 {[%clk 0:02:23.8]} 17... Qh4 {[%clk 0:02:32.2]} 18. Nd2 {[%clk 0:02:08.2]}
18... f5 {[%clk 0:02:21]} 19. Bf3 {[%clk 0:02:08.4]} 19... Rad8 {[%clk
0:02:15.7]} 20. Nf1 {[%clk 0:01:55.1]} 20... Ba8 {[%clk 0:02:14.6]} 21. Re1
{[%clk 0:01:42.5]} 21... e5 {[%clk 0:02:11.2]} 22. Bxd5+ {[%clk 0:01:41.1]}
22... Bxd5 {[%clk 0:02:07.9]} 23. Ne3 {[%clk 0:01:41.2]} 23... Be4 {[%clk
0:02:04.8]} 24. Qb3+ {[%clk 0:01:40.8]} 24... Kh7 {[%clk 0:02:04.6]} 25. Qc4
{[%clk 0:01:35.1]} 25... Qf6 {[%clk 0:01:47.9]} 26. Qxc5 {[%clk 0:01:25.1]}
26... Bb6 {[%clk 0:01:48.1]} 27. Qc4 {[%clk 0:01:24.7]} 27... Qg6 {[%clk
0:01:41.9]} 28. g3 {[%clk 0:01:06.5]} 28... f4 {[%clk 0:01:35.4]} 29. Ng4 {[%clk
0:00:56.4]} 29... fxg3 {[%clk 0:01:23.4]} 30. Rxe4 {[%clk 0:00:43.6]} 30...
gxf2+ {[%clk 0:01:20.6]} 31. Kg2 {[%clk 0:00:43.9]} 31... f1=Q+ {[%clk 0:01:17]}
32. Qxf1 {[%clk 0:00:43.2]} 32... Qxe4+ {[%clk 0:01:17.5]} 0-1

[Event "Late-Titled-Tuesday-Blitz-September-05-2023"]
[Site "Chess.com"]
[Date "2023.09.05"]
[Round "2"]
[White "Tomytoteph"]
[Black "drinbet"]
[Result "1-0"]
[WhiteElo "2639"]
[BlackElo "2251"]
[TimeControl "180+1"]
[EndTime "14:16:01 PDT"]
[Termination "Tomytoteph won by checkmate"]

1. e4 {[%clk 0:03:00.9]} 1... c5 {[%clk 0:02:28.4]} 2. Nf3 {[%clk 0:03:00.6]}
2... e6 {[%clk 0:02:27.5]} 3. d4 {[%clk 0:03:00.3]} 3... cxd4 {[%clk 0:02:27.5]}
4. Nxd4 {[%clk 0:03:01.2]} 4... Ne7 {[%clk 0:02:24.8]} 5. Bd3 {[%clk 0:02:59.4]}
5... Nbc6 {[%clk 0:02:23.7]} 6. Nf3 {[%clk 0:02:57.4]} 6... Ng6 {[%clk
0:02:22.9]} 7. O-O {[%clk 0:02:57.1]} 7... d6 {[%clk 0:02:22.7]} 8. Qe2 {[%clk
0:02:44.6]} 8... Be7 {[%clk 0:02:22.6]} 9. Nc3 {[%clk 0:02:44.4]} 9... O-O
{[%clk 0:02:22.4]} 10. Be3 {[%clk 0:02:44.3]} 10... a6 {[%clk 0:02:22.1]} 11. a4
{[%clk 0:02:43.1]} 11... d5 {[%clk 0:02:17.7]} 12. exd5 {[%clk 0:02:42.6]} 12...
exd5 {[%clk 0:02:17.7]} 13. Rfd1 {[%clk 0:02:42.6]} 13... Be6 {[%clk 0:02:17.1]}
14. Rd2 {[%clk 0:02:33.2]} 14... Re8 {[%clk 0:02:16.7]} 15. Rad1 {[%clk
0:02:32.7]} 15... Bb4 {[%clk 0:02:04.8]} 16. Bxg6 {[%clk 0:02:06.3]} 16... hxg6
{[%clk 0:02:03.2]} 17. Nd4 {[%clk 0:02:06.7]} 17... Ne5 {[%clk 0:01:23.8]} 18.
Nxe6 {[%clk 0:02:01]} 18... fxe6 {[%clk 0:01:20.1]} 19. Rd4 {[%clk 0:01:59.9]}
19... Bxc3 {[%clk 0:01:09.5]} 20. bxc3 {[%clk 0:02:00.8]} 20... Qa5 {[%clk
0:01:02.8]} 21. Bf4 {[%clk 0:01:50.8]} 21... Nc4 {[%clk 0:00:59.9]} 22. Bg3
{[%clk 0:01:50.4]} 22... Qxc3 {[%clk 0:00:57.6]} 23. Qg4 {[%clk 0:01:50.4]}
23... Nb2 {[%clk 0:00:45.1]} 24. Rf1 {[%clk 0:01:42.2]} 24... Qxc2 {[%clk
0:00:38.6]} 25. Rb4 {[%clk 0:01:25.1]} 25... b5 {[%clk 0:00:34.7]} 26. axb5
{[%clk 0:01:24.4]} 26... axb5 {[%clk 0:00:34.9]} 27. Rxb5 {[%clk 0:01:24.9]}
27... Nc4 {[%clk 0:00:34.2]} 28. Rb7 {[%clk 0:01:22.2]} 28... Qf5 {[%clk
0:00:34.1]} 29. Qd4 {[%clk 0:01:19.6]} 29... Rad8 {[%clk 0:00:32.6]} 30. Qxg7#
{[%clk 0:01:19.3]} 1-0

[Event "Late-Titled-Tuesday-Blitz-September-05-2023"]
[Site "Chess.com"]
[Date "2023.09.05"]
[Round "2"]
[White "Bilan_Danila"]
[Black "baag"]
[Result "0-1"]
[WhiteElo "2519"]
[BlackElo "2776"]
[TimeControl "180+1"]
[EndTime "14:16:08 PDT"]
[Termination "baag won by resignation"]

1. d4 {[%clk 0:03:00.9]} 1... Nf6 {[%clk 0:02:59.9]} 2. Nf3 {[%clk 0:02:58]}
2... c5 {[%clk 0:02:59.6]} 3. e3 {[%clk 0:02:57.9]} 3... g6 {[%clk 0:02:58.8]}
4. c3 {[%clk 0:02:57.8]} 4... Bg7 {[%clk 0:02:59.5]} 5. Nbd2 {[%clk 0:02:57.4]}
5... b6 {[%clk 0:02:58.9]} 6. Bc4 {[%clk 0:02:56.2]} 6... O-O {[%clk 0:02:58.7]}
7. O-O {[%clk 0:02:50.4]} 7... Bb7 {[%clk 0:02:58.8]} 8. a4 {[%clk 0:02:48.8]}
8... d5 {[%clk 0:02:54.9]} 9. Bd3 {[%clk 0:02:42.9]} 9... Ne4 {[%clk 0:02:55]}
10. Qc2 {[%clk 0:02:34.4]} 10... Nd6 {[%clk 0:02:49.4]} 11. Ne5 {[%clk
0:02:17.7]} 11... Nc6 {[%clk 0:02:45.4]} 12. f4 {[%clk 0:02:07.1]} 12... Rc8
{[%clk 0:02:42.2]} 13. Qd1 {[%clk 0:01:49.9]} 13... f6 {[%clk 0:02:42.5]} 14.
Nxg6 {[%clk 0:01:00.5]} 14... hxg6 {[%clk 0:02:41.6]} 15. Bxg6 {[%clk
0:01:01.4]} 15... f5 {[%clk 0:02:42.4]} 16. Qh5 {[%clk 0:01:00.6]} 16... Rf6
{[%clk 0:02:43.1]} 17. Nf3 {[%clk 0:00:41.6]} 17... e6 {[%clk 0:02:26.9]} 18.
Ng5 {[%clk 0:00:13.8]} 18... Ne7 {[%clk 0:02:14.3]} 19. Bh7+ {[%clk 0:00:03.5]}
19... Kf8 {[%clk 0:02:14.6]} 20. Qh3 {[%clk 0:00:02]} 20... Rh6 {[%clk
0:02:10.2]} 21. Qf3 {[%clk 0:00:01.2]} 21... Ne4 {[%clk 0:02:03.5]} 22. g4
{[%clk 0:00:01.2]} 22... Nxg5 {[%clk 0:02:02.3]} 23. fxg5 {[%clk 0:00:02.1]}
23... Rxh7 {[%clk 0:02:03.1]} 24. gxf5 {[%clk 0:00:02.7]} 24... Nxf5 {[%clk
0:02:04]} 25. e4 {[%clk 0:00:02.1]} 25... dxe4 {[%clk 0:02:04.3]} 26. Qg4 {[%clk
0:00:02.2]} 26... cxd4 {[%clk 0:02:04.5]} 27. Bf4 {[%clk 0:00:02.1]} 27... Kg8
{[%clk 0:02:02.5]} 28. g6 {[%clk 0:00:02.2]} 28... Rh4 {[%clk 0:02:02.2]} 29.
Qg2 {[%clk 0:00:01.9]} 29... dxc3 {[%clk 0:01:59.7]} 30. Bg5 {[%clk 0:00:02.3]}
30... Qd4+ {[%clk 0:01:58.8]} 31. Kh1 {[%clk 0:00:02.9]} 31... cxb2 {[%clk
0:01:58.3]} 32. Bxh4 {[%clk 0:00:03.4]} 32... bxa1=Q {[%clk 0:01:58.3]} 33. Rxa1
{[%clk 0:00:03.4]} 33... Qxa1+ {[%clk 0:01:59.2]} 0-1

[Event "Late-Titled-Tuesday-Blitz-September-05-2023"]
[Site "Chess.com"]
[Date "2023.09.05"]
[Round "2"]
[White "Fonsofan"]
[Black "Cmorales2001"]
[Result "1-0"]
[WhiteElo "2739"]
[BlackElo "2421"]
[TimeControl "180+1"]
[EndTime "14:16:13 PDT"]
[Termination "Fonsofan won by resignation"]

1. e4 {[%clk 0:02:35.4]} 1... c6 {[%clk 0:02:58.4]} 2. d4 {[%clk 0:02:34]} 2...
d5 {[%clk 0:02:59.3]} 3. exd5 {[%clk 0:02:34.9]} 3... cxd5 {[%clk 0:02:58.8]} 4.
Bf4 {[%clk 0:02:35.6]} 4... Nc6 {[%clk 0:02:58.2]} 5. c3 {[%clk 0:02:36.1]} 5...
Bf5 {[%clk 0:02:58]} 6. Nf3 {[%clk 0:02:35.4]} 6... e6 {[%clk 0:02:57.4]} 7.
Nbd2 {[%clk 0:02:34.8]} 7... Bd6 {[%clk 0:02:57]} 8. Bxd6 {[%clk 0:02:34]} 8...
Qxd6 {[%clk 0:02:56.7]} 9. Nh4 {[%clk 0:02:33.4]} 9... Bg6 {[%clk 0:02:56.2]}
10. Be2 {[%clk 0:02:32.3]} 10... Nge7 {[%clk 0:02:52.4]} 11. O-O {[%clk
0:02:32.2]} 11... Nf5 {[%clk 0:02:50.6]} 12. Ndf3 {[%clk 0:02:29.4]} 12... O-O
{[%clk 0:02:49]} 13. Nxg6 {[%clk 0:02:27.8]} 13... fxg6 {[%clk 0:02:46.2]} 14.
Re1 {[%clk 0:02:28.2]} 14... Rae8 {[%clk 0:02:45.1]} 15. Bb5 {[%clk 0:02:27.1]}
15... a6 {[%clk 0:02:40]} 16. Ba4 {[%clk 0:02:26.3]} 16... b5 {[%clk 0:02:39.2]}
17. Bc2 {[%clk 0:02:26.1]} 17... Rf6 {[%clk 0:02:34.7]} 18. Ne5 {[%clk
0:02:23.8]} 18... Ref8 {[%clk 0:02:33.2]} 19. Qd2 {[%clk 0:02:21.7]} 19... Nfe7
{[%clk 0:02:30.9]} 20. Re2 {[%clk 0:02:20.5]} 20... Qc7 {[%clk 0:02:28.7]} 21.
Nxc6 {[%clk 0:02:16.5]} 21... Nxc6 {[%clk 0:02:28.5]} 22. Rae1 {[%clk
0:02:17.4]} 22... Qd6 {[%clk 0:02:24.6]} 23. g3 {[%clk 0:02:09.6]} 23... Nb8
{[%clk 0:02:22.6]} 24. a4 {[%clk 0:02:05.5]} 24... Nd7 {[%clk 0:02:19.2]} 25.
axb5 {[%clk 0:02:05.2]} 25... axb5 {[%clk 0:02:20]} 26. Bd3 {[%clk 0:02:04]}
26... Rb8 {[%clk 0:02:19.5]} 27. Re3 {[%clk 0:01:56]} 27... Nf8 {[%clk
0:02:19.4]} 28. h4 {[%clk 0:01:53.7]} 28... Rf7 {[%clk 0:02:16.6]} 29. Bf1
{[%clk 0:01:45.8]} 29... b4 {[%clk 0:02:16.1]} 30. c4 {[%clk 0:01:45.4]} 30...
dxc4 {[%clk 0:02:09.7]} 31. Bxc4 {[%clk 0:01:46.3]} 31... Rd8 {[%clk 0:02:01.8]}
32. Rxe6 {[%clk 0:01:42.9]} 32... Nxe6 {[%clk 0:01:58.2]} 33. Rxe6 {[%clk
0:01:43.8]} 33... Qd7 {[%clk 0:01:53.5]} 34. Re4 {[%clk 0:01:36.7]} 34... Kh8
{[%clk 0:01:51]} 35. Bxf7 {[%clk 0:01:36.7]} 35... Qxf7 {[%clk 0:01:50.9]} 36.
Qxb4 {[%clk 0:01:37.4]} 36... h6 {[%clk 0:01:51.3]} 37. Qe1 {[%clk 0:01:33.1]}
37... Qb3 {[%clk 0:01:49.2]} 38. Re8+ {[%clk 0:01:28.7]} 38... Rxe8 {[%clk
0:01:49.1]} 39. Qxe8+ {[%clk 0:01:29.6]} 39... Kh7 {[%clk 0:01:49.1]} 40. Qe2
{[%clk 0:01:30.1]} 40... Qa2 {[%clk 0:01:44.7]} 41. Qd3 {[%clk 0:01:24.1]} 41...
h5 {[%clk 0:01:39.2]} 42. b3 {[%clk 0:01:19.8]} 42... Qa1+ {[%clk 0:01:32.5]}
43. Kg2 {[%clk 0:01:19.7]} 43... Qa8+ {[%clk 0:01:32.8]} 44. d5 {[%clk
0:01:20.2]} 44... Qb7 {[%clk 0:01:29.3]} 45. Qc4 {[%clk 0:01:16.9]} 45... Kh6
{[%clk 0:01:23.2]} 46. b4 {[%clk 0:01:13.9]} 46... g5 {[%clk 0:01:22.1]} 47.
Qc6+ {[%clk 0:01:14.2]} 1-0

[Event "Late-Titled-Tuesday-Blitz-September-05-2023"]
[Site "Chess.com"]
[Date "2023.09.05"]
[Round "2"]
[White "KChor05TTV"]
[Black "zozik"]
[Result "0-1"]
[WhiteElo "2588"]
[BlackElo "2366"]
[TimeControl "180+1"]
[EndTime "14:16:17 PDT"]
[Termination "zozik won by resignation"]

1. d4 {[%clk 0:03:00]} 1... d5 {[%clk 0:02:55.5]} 2. c4 {[%clk 0:02:58.4]} 2...
e6 {[%clk 0:02:52.2]} 3. Nf3 {[%clk 0:02:57.6]} 3... c5 {[%clk 0:02:50.5]} 4.
cxd5 {[%clk 0:02:54]} 4... exd5 {[%clk 0:02:51.4]} 5. g3 {[%clk 0:02:53]} 5...
Nc6 {[%clk 0:02:51.1]} 6. Bg2 {[%clk 0:02:52.1]} 6... Nf6 {[%clk 0:02:51.6]} 7.
O-O {[%clk 0:02:51.7]} 7... Be7 {[%clk 0:02:52.2]} 8. Nc3 {[%clk 0:02:50.9]}
8... O-O {[%clk 0:02:51.9]} 9. Bg5 {[%clk 0:02:48.1]} 9... c4 {[%clk 0:02:51.9]}
10. Ne5 {[%clk 0:02:32.8]} 10... Be6 {[%clk 0:02:51.2]} 11. b3 {[%clk
0:02:21.2]} 11... Qa5 {[%clk 0:02:30.9]} 12. Rc1 {[%clk 0:02:09]} 12... Ba3
{[%clk 0:02:22.3]} 13. Rc2 {[%clk 0:02:09.2]} 13... Bb4 {[%clk 0:02:06.2]} 14.
Nxc6 {[%clk 0:02:07.3]} 14... bxc6 {[%clk 0:02:05.4]} 15. Bxf6 {[%clk
0:02:06.4]} 15... Bxc3 {[%clk 0:02:02.5]} 16. Qc1 {[%clk 0:02:01.6]} 16... gxf6
{[%clk 0:01:22.3]} 17. Rxc3 {[%clk 0:02:01.1]} 17... c5 {[%clk 0:01:17.7]} 18.
dxc5 {[%clk 0:01:49.8]} 18... d4 {[%clk 0:01:13]} 19. Rxc4 {[%clk 0:01:26.3]}
19... Bxc4 {[%clk 0:01:11.4]} 20. Bxa8 {[%clk 0:01:18.6]} 20... Bxe2 {[%clk
0:01:10.3]} 21. Re1 {[%clk 0:00:59.4]} 21... d3 {[%clk 0:01:10.1]} 0-1

[Event "Late-Titled-Tuesday-Blitz-September-05-2023"]
[Site "Chess.com"]
[Date "2023.09.05"]
[Round "2"]
[White "MITerryble"]
[Black "koncheto"]
[Result "1-0"]
[WhiteElo "2914"]
[BlackElo "2560"]
[TimeControl "180+1"]
[EndTime "14:16:35 PDT"]
[Termination "MITerryble won by resignation"]

1. e4 {[%clk 0:02:48.7]} 1... c5 {[%clk 0:02:58.1]} 2. Nf3 {[%clk 0:02:48.2]}
2... d6 {[%clk 0:02:57.9]} 3. Bb5+ {[%clk 0:02:48]} 3... Nc6 {[%clk 0:02:58]} 4.
O-O {[%clk 0:02:47.6]} 4... Bd7 {[%clk 0:02:58.4]} 5. Re1 {[%clk 0:02:46.8]}
5... a6 {[%clk 0:02:58.8]} 6. Bf1 {[%clk 0:02:46.5]} 6... Bg4 {[%clk 0:02:59.3]}
7. c3 {[%clk 0:02:46.4]} 7... g6 {[%clk 0:02:59]} 8. d4 {[%clk 0:02:45]} 8...
cxd4 {[%clk 0:02:58.9]} 9. cxd4 {[%clk 0:02:45.9]} 9... Bg7 {[%clk 0:02:59.3]}
10. Be3 {[%clk 0:02:42.8]} 10... Bxf3 {[%clk 0:02:55.9]} 11. gxf3 {[%clk
0:02:42.7]} 11... Nf6 {[%clk 0:02:56.8]} 12. d5 {[%clk 0:02:32.7]} 12... Ne5
{[%clk 0:02:52.9]} 13. Nd2 {[%clk 0:02:29.8]} 13... O-O {[%clk 0:02:49.9]} 14.
Qb3 {[%clk 0:02:27.4]} 14... b5 {[%clk 0:02:03.2]} 15. Rac1 {[%clk 0:02:26.9]}
15... Rc8 {[%clk 0:01:59.6]} 16. Bh3 {[%clk 0:02:10.9]} 16... Rxc1 {[%clk
0:01:35.6]} 17. Rxc1 {[%clk 0:02:10.5]} 17... Qa5 {[%clk 0:01:35.5]} 18. a3
{[%clk 0:01:49.7]} 18... Ned7 {[%clk 0:01:22.7]} 19. Qc2 {[%clk 0:01:36.6]}
19... b4 {[%clk 0:01:19.7]} 20. Nc4 {[%clk 0:01:26.6]} 20... Qb5 {[%clk
0:01:11.2]} 21. a4 {[%clk 0:01:25.4]} 21... Qb8 {[%clk 0:00:57.7]} 22. Na5
{[%clk 0:01:25.6]} 22... Nc5 {[%clk 0:00:32.6]} 23. Nc6 {[%clk 0:01:21.1]} 23...
Qc7 {[%clk 0:00:32]} 24. Nxb4 {[%clk 0:01:12.3]} 24... Qa5 {[%clk 0:00:31.5]}
25. Nc6 {[%clk 0:01:12.5]} 25... Qc7 {[%clk 0:00:23.8]} 26. b4 {[%clk
0:01:07.4]} 26... Nb7 {[%clk 0:00:21.3]} 27. Qc4 {[%clk 0:01:06.1]} 27... a5
{[%clk 0:00:13.3]} 28. Nxa5 {[%clk 0:01:05.8]} 28... Qxc4 {[%clk 0:00:11.6]} 29.
Rxc4 {[%clk 0:01:06.7]} 29... Nxa5 {[%clk 0:00:11.6]} 30. bxa5 {[%clk
0:01:07.2]} 30... Ra8 {[%clk 0:00:12.5]} 31. Rc8+ {[%clk 0:01:06.7]} 1-0